fUSD/lending_fUSD_20250208
["ID","MTS","AMOUNT","RATE_DAILY","PERIOD"]
[352295695,1739030795689,-500.0,0.00010134,2]
[352295696,1739030795718,-500.0,0.00010134,2]
[352295697,1739030795746,-183.55,0.00010137,2]
[352295698,1739030795775,-659.96,0.00010268,2]
[352295699,1739030795807,-500.0,0.00010268,2]
[352295700,1739030795840,-500.0,0.00010268,2]
[352295701,1739030795868,-500.0,0.00010268,2]
[352295702,1739030795897,-500.0,0.00010268,2]
[352295703,1739030795926,-500.0,0.00010268,2]
[352295704,1739030795954,-500.0,0.00010268,2]
[352295705,1739030795984,-500.0,0.00010268,2]
[352295706,1739030796012,-500.0,0.00010269,2]
[352295707,1739030796040,-500.0,0.00010269,2]
[352295708,1739030796072,-500.0,0.00010269,2]
[352295709,1739030796102,-500.0,0.00010269,2]
[352295710,1739030796132,-500.0,0.00010269,2]
[352295711,1739030796162,-500.0,0.00010269,2]
[352295712,1739030796191,-500.0,0.00010269,2]
[352295713,1739030796219,-500.0,0.00010269,2]
[352295714,1739030796248,-500.0,0.00010269,2]
[352295715,1739030796278,-500.0,0.00010269,2]
[352295716,1739030796309,-500.0,0.00010269,2]
[352295717,1739030796340,-500.0,0.00010269,2]
[352295718,1739030796369,-500.28146586,0.00010269,2]
[352295719,1739030796406,-500.0,0.00010269,2]
[352295720,1739030796435,-500.0,0.00010269,2]
[352295721,1739030796464,-500.0,0.00010269,2]
[352295722,1739030796493,-500.0,0.00010269,2]
[352295723,1739030796521,-500.0,0.00010269,2]
[352295724,1739030796551,-500.0,0.00010269,2]
[352295725,1739030796583,-500.2079928,0.00010269,2]
[352295726,1739030796614,-155.966823,0.00010269,2]
[352295727,1739030796644,-500.0,0.00010269,2]
[352295728,1739030796673,-500.0,0.00010269,2]
[352295729,1739030796702,-500.0,0.00010269,2]
[352295730,1739030796730,-500.0,0.00010269,2]
[352295731,1739030796759,-500.0,0.00010269,2]
[352295732,1739030796787,-500.0,0.00010269,2]
[352295733,1739030796817,-500.0,0.00010269,2]
[352295734,1739030796846,-500.0,0.00010269,2]
[352295735,1739030796875,-500.0,0.00010269,2]
[352295736,1739030796904,-500.0,0.00010269,2]
[352295737,1739030796931,-500.0,0.00010269,2]
[352295738,1739030796959,-500.0,0.00010269,2]
[352295739,1739030796988,-500.0,0.00010269,2]
[352295740,1739030797016,-500.0,0.00010269,2]
[352295741,1739030797044,-500.0,0.00010269,2]
[352295742,1739030797074,-500.0,0.00010269,2]
[352295743,1739030797102,-500.0,0.00010269,2]
[352295744,1739030797129,-500.0,0.00010269,2]
[352295745,1739030797157,-500.0,0.00010269,2]
[352295746,1739030797185,-500.0,0.00010269,2]
[352295747,1739030797212,-500.0,0.00010269,2]
[352295748,1739030797239,-500.0,0.00010269,2]
[352295749,1739030797267,-500.0,0.00010269,2]
[352295750,1739030797298,-500.0,0.00010269,2]
[352295751,1739030797327,-500.0,0.00010269,2]
[352295752,1739030797354,-500.873053,0.00010269,2]
[352295753,1739030797383,-500.0,0.00010269,2]
[352295754,1739030797411,-421.38023676,0.00010269,2]
[352295755,1739030797437,-500.0,0.00010269,2]
[352295756,1739030797465,-500.0,0.00010269,2]
[352295757,1739030797491,-500.0,0.00010269,2]
[352295758,1739030797518,-500.0,0.00010269,2]
[352295759,1739030797545,-500.0,0.00010269,2]
[352295760,1739030797575,-500.0,0.00010269,2]
[352295761,1739030797602,-582.84396115,0.00010269,2]
[352295762,1739030797629,-500.0,0.00010269,2]
[352295763,1739030797656,-500.0,0.00010269,2]
[352295764,1739030797683,-500.0,0.00010269,2]
[352295765,1739030797710,-500.0,0.00010269,2]
[352295766,1739030797738,-500.0,0.00010269,2]
[352295767,1739030797765,-500.0,0.00010269,2]
[352295768,1739030797792,-500.0,0.00010269,2]
[352295769,1739030797821,-500.0,0.00010269,2]
[352295770,1739030797846,-500.0,0.00010269,2]
[352295771,1739030797873,-500.0,0.00010269,2]
[352295772,1739030797903,-500.0,0.00010269,2]
[352295773,1739030797930,-500.0,0.00010269,2]
[352295774,1739030797958,-500.0,0.00010269,2]
[352295775,1739030797986,-500.0,0.00010269,2]
[352295776,1739030798015,-500.0,0.00010269,2]
[352295777,1739030798043,-500.0,0.00010269,2]
[352295778,1739030798073,-500.0,0.00010269,2]
[352295779,1739030798100,-500.0,0.00010269,2]
[352295780,1739030798129,-570.86946989,0.00010269,2]
[352295781,1739030798158,-500.0,0.00010269,2]
[352295782,1739030798189,-500.0,0.00010269,2]
[352295783,1739030798217,-500.0,0.00010269,2]
[352295784,1739030798246,-500.0,0.00010269,2]
[352295785,1739030798274,-500.0,0.00010269,2]
[352295786,1739030798304,-226.1458714,0.00010269,2]
[352295787,1739030798333,-500.0,0.00010269,2]
[352295788,1739030798365,-500.0,0.00010269,2]
[352295789,1739030798395,-505.99,0.00010269,2]
[352295790,1739030798424,-503.14907345,0.00010269,2]
[352295791,1739030798451,-504.43781728,0.00010269,2]
[352295792,1739030798479,-500.0,0.00010269,2]
[352295793,1739030798507,-615.90737694,0.00010269,2]
[352295794,1739030798534,-500.0,0.00010269,2]
[352295795,1739030798561,-500.0,0.00010269,2]
[352295796,1739030798589,-500.0,0.00010269,2]
[352295797,1739030798615,-500.0,0.00010269,2]
[352295798,1739030798641,-539.18351468,0.00010269,2]
[352295799,1739030798833,-500.0,0.00010269,2]
[352295800,1739030798860,-500.0,0.00010269,2]
[352295801,1739030798888,-500.0,0.0001027,2]
[352295802,1739030798916,-500.0,0.0001027,2]
[352295803,1739030798944,-500.0,0.0001027,2]
[352295804,1739030798972,-500.0,0.0001027,2]
[352295805,1739030799000,-500.0,0.0001027,2]
[352295806,1739030799027,-500.0,0.0001027,2]
[352295807,1739030799055,-500.0,0.0001027,2]
[352295808,1739030799083,-500.0,0.0001027,2]
[352295809,1739030799112,-500.0,0.0001027,2]
[352295810,1739030799140,-500.0,0.0001027,2]
[352295811,1739030799169,-571.21,0.0001027,2]
[352295812,1739030799198,-541.36,0.0001027,2]
[352295813,1739030799228,-500.0,0.0001027,2]
[352295814,1739030799258,-500.0,0.0001027,2]
[352295815,1739030799289,-500.0,0.00010271,2]
[352295816,1739030799323,-500.0,0.00010271,2]
[352295817,1739030799353,-500.0,0.00010271,2]
[352295818,1739030799383,-500.0,0.00010271,2]
[352295819,1739030799414,-500.0,0.00010271,2]
[352295820,1739030799443,-500.0,0.00010271,2]
[352295821,1739030799472,-500.0,0.00010271,2]
[352295822,1739030799500,-500.0,0.00010271,2]
[352295823,1739030799528,-500.0,0.00010271,2]
[352295824,1739030799556,-500.0,0.00010271,2]
[352295825,1739030799586,-500.0,0.00010271,2]
[352295826,1739030799614,-500.0,0.00010271,2]
[352295827,1739030799643,-500.0,0.00010271,2]
[352295828,1739030799671,-659.96,0.00010405,2]
[352295829,1739030799700,-500.0,0.00010405,2]
[352295830,1739030799729,-500.0,0.00010405,2]
[352295831,1739030799760,-500.0,0.00010405,2]
[352295832,1739030799787,-634.99,0.00010405,2]
[352295833,1739030799817,-456.17,0.00010405,2]
[352295834,1739030799846,-555.88,0.00010405,2]
[352295835,1739030799878,-500.0,0.00010405,2]
[352295836,1739030799909,-1304.96,0.00010406,2]
[352295837,1739030799942,-500.0,0.00010406,2]
[352295838,1739030799972,-500.0,0.00010406,2]
[352295839,1739030800004,-500.0,0.00010406,2]
[352295840,1739030800034,-500.0,0.00010406,2]
[352295841,1739030800061,-500.0,0.00010406,2]
[352295842,1739030800092,-628.64,0.00010406,2]
[352295843,1739030800123,-500.0,0.00010406,2]
[352295844,1739030800153,-500.0,0.00010406,2]
[352295845,1739030800183,-500.0,0.00010406,2]
[352295846,1739030800212,-500.0,0.00010406,2]
[352295847,1739030800241,-556.74,0.00010406,2]
[352295848,1739030800270,-500.0,0.00010406,2]
[352295849,1739030800306,-500.0,0.00010406,2]
[352295850,1739030800338,-500.0,0.00010406,2]
[352295851,1739030800371,-500.0,0.00010406,2]
[352295852,1739030800404,-500.0,0.00010406,2]
[352295853,1739030800435,-500.0,0.00010406,2]
[352295854,1739030800466,-500.0,0.00010406,2]
[352295855,1739030800494,-500.0,0.00010406,2]
[352295856,1739030800524,-500.0,0.00010406,2]
[352295857,1739030800553,-500.0,0.00010406,2]
[352295858,1739030800581,-500.0,0.00010406,2]
[352295859,1739030800609,-500.0,0.00010406,2]
[352295860,1739030800636,-500.0,0.00010406,2]
[352295861,1739030800664,-492.85,0.00010406,2]
[352295862,1739030800692,-500.0,0.00010407,2]
[352295863,1739030800719,-500.0,0.00010407,2]
[352295864,1739030800749,-244.53,0.00010407,2]
[352295865,1739030800776,-500.0,0.00010407,2]
[352295866,1739030800803,-500.0,0.00010407,2]
[352295867,1739030800830,-500.0,0.00010407,2]
[352295868,1739030800857,-500.0,0.00010407,2]
[352295869,1739030800884,-500.0,0.00010407,2]
[352295870,1739030800911,-571.21,0.00010407,2]
[352295871,1739030800939,-500.0,0.00010407,2]
[352295872,1739030800968,-500.0,0.00010407,2]
[352295873,1739030800997,-500.0,0.00010408,2]
[352295874,1739030801027,-500.0,0.00010408,2]
[352295875,1739030801056,-500.0,0.00010408,2]
[352295876,1739030801085,-500.0,0.00010408,2]
[352295877,1739030801113,-287.07,0.00010408,2]
[352295878,1739030801141,-281.1,0.00010408,2]
[352295879,1739030801169,-164.97,0.00010408,2]
[352295880,1739030801196,-622.93,0.00010408,2]
[352295881,1739030801224,-500.0,0.00010408,2]
[352295882,1739030801252,-500.0,0.00010408,2]
[352295883,1739030801280,-500.0,0.00010408,2]
[352295884,1739030801312,-500.0,0.00010408,2]
[352295885,1739030801341,-659.96,0.00010542,2]
[352295886,1739030801368,-500.0,0.00010542,2]
[352295887,1739030801397,-500.0,0.00010542,2]
[352295888,1739030801424,-500.0,0.00010542,2]
[352295889,1739030801452,-500.0,0.00010542,2]
[352295890,1739030801480,-500.0,0.00010543,2]
[352295891,1739030801508,-1304.96,0.00010543,2]
[352295892,1739030801535,-500.0,0.00010543,2]
[352295893,1739030801563,-500.0,0.00010543,2]
[352295894,1739030801590,-603.96,0.00010543,2]
[352295895,1739030801631,-500.0,0.00010543,2]
[352295896,1739030801662,-155.966823,0.00010543,2]
[352295897,1739030801691,-500.0,0.00010543,2]
[352295898,1739030801721,-500.0,0.00010543,2]
[352295899,1739030801751,-500.0,0.00010543,2]
[352295900,1739030801780,-541.39,0.00010543,2]
[352295901,1739030801808,-500.0,0.00010543,2]
[352295902,1739030801838,-500.0,0.00010543,2]
[352295903,1739030801867,-500.0,0.00010543,2]
[352295904,1739030801897,-500.0,0.00010543,2]
[352295905,1739030801926,-638.18,0.00010543,2]
[352295906,1739030801956,-238.57,0.00010543,2]
[352295907,1739030801984,-500.0,0.00010543,2]
[352295908,1739030802013,-514.55,0.00010543,2]
[352295909,1739030802043,-500.0,0.00010543,2]
[352295910,1739030802072,-500.0,0.00010544,2]
[352295911,1739030802331,-500.0,0.00010544,2]
[352295912,1739030802360,-500.0,0.00010544,2]
[352295913,1739030802390,-500.0,0.00010544,2]
[352295914,1739030802418,-500.0,0.00010544,2]
[352295915,1739030802450,-500.0,0.00010544,2]
[352295916,1739030802484,-500.0,0.00010544,2]
[352295917,1739030802513,-500.0,0.00010544,2]
[352295918,1739030802541,-571.21,0.00010544,2]
[352295919,1739030802570,-500.0,0.00010544,2]
[352295920,1739030802599,-500.0,0.00010544,2]
[352295921,1739030802627,-602.39,0.00010544,2]
[352295922,1739030802656,-1069.72,0.00010544,2]
[352295923,1739030802686,-500.0,0.00010545,2]
[352295924,1739030802716,-500.0,0.00010545,2]
[352295925,1739030802745,-500.0,0.00010545,2]
[352295926,1739030802774,-402.7,0.00010545,2]
[352295927,1739030802802,-500.0,0.00010545,2]
[352295928,1739030802830,-500.0,0.00010545,2]
[352295929,1739030802862,-659.96,0.00010679,2]
[352295930,1739030802892,-500.0,0.00010679,2]
[352295931,1739030802921,-253.39,0.00010679,2]
[352295932,1739030802950,-500.0,0.00010679,2]
[352295933,1739030802979,-622.12,0.00010679,2]
[352295934,1739030803008,-344.91560303,0.0001068,2]
[352295935,1739030803038,-1304.96,0.0001068,2]
[352295936,1739030803067,-500.0,0.0001068,2]
[352295937,1739030803095,-500.0,0.0001068,2]
[352295938,1739030803123,-500.0,0.0001068,2]
[352295939,1739030803151,-500.0,0.0001068,2]
[352295940,1739030803181,-500.0,0.0001068,2]
[352295941,1739030803212,-500.0,0.0001068,2]
[352295942,1739030803242,-500.0,0.0001068,2]
[352295943,1739030803274,-500.0,0.0001068,2]
[352295944,1739030803307,-500.0,0.0001068,2]
[352295945,1739030803338,-392.52,0.0001068,2]
[352295946,1739030803369,-500.0,0.0001068,2]
[352295947,1739030803399,-338.22,0.00010681,2]
[352295948,1739030803428,-500.0,0.00010681,2]
[352295949,1739030803457,-500.0,0.00010681,2]
[352295950,1739030803487,-500.0,0.00010681,2]
[352295951,1739030803516,-500.0,0.00010681,2]
[352295952,1739030803545,-553.13,0.00010681,2]
[352295953,1739030803575,-500.0,0.00010681,2]
[352295954,1739030803605,-500.0,0.00010681,2]
[352295955,1739030803634,-571.21,0.00010681,2]
[352295956,1739030803664,-500.0,0.00010681,2]
[352295957,1739030803693,-500.0,0.00010681,2]
[352295958,1739030803722,-173.76,0.00010682,2]
[352295959,1739030803750,-500.0,0.00010682,2]
[352295960,1739030803779,-500.0,0.00010682,2]
[352295961,1739030803807,-580.74,0.00010682,2]
[352295962,1739030803838,-580.13,0.00010682,2]
[352295963,1739030803867,-1000.0,0.00010709,2]
[352295964,1739030803896,-2160.92086718,0.0001078,2]
[352295965,1739030803924,-659.96,0.00010816,2]
[352295966,1739030803953,-500.0,0.00010816,2]
[352295967,1739030803982,-406.98,0.00010816,2]
[352295968,1739030804011,-1304.96,0.00010817,2]
[352295969,1739030804039,-500.0,0.00010817,2]
[352295970,1739030804069,-542.93,0.00010817,2]
[352295971,1739030804099,-155.966823,0.00010817,2]
[352295972,1739030804129,-500.0,0.00010817,2]
[352295973,1739030804158,-346.46,0.00010817,2]
[352295974,1739030804187,-500.0,0.00010817,2]
[352295975,1739030804217,-500.0,0.00010817,2]
[352295976,1739030804245,-500.0,0.00010817,2]
[352295977,1739030804274,-648.42,0.00010817,2]
[352295978,1739030804306,-467.6,0.00010817,2]
[352295979,1739030804336,-500.0,0.00010817,2]
[352295980,1739030804367,-500.0,0.00010818,2]
[352295981,1739030804397,-323.4,0.00010818,2]
[352295982,1739030804427,-500.0,0.00010818,2]
[352295983,1739030804456,-500.0,0.00010818,2]
[352295984,1739030804487,-500.0,0.00010818,2]
[352295985,1739030804516,-164.35,0.00010818,2]
[352295986,1739030804544,-571.21,0.00010818,2]
[352295987,1739030804573,-500.0,0.00010818,2]
[352295988,1739030804601,-500.0,0.00010818,2]
[352295989,1739030804630,-317.57,0.00010819,2]
[352295990,1739030804659,-500.0,0.00010819,2]
[352295991,1739030804687,-2160.92086718,0.0001084,2]
[352295992,1739030804715,-2652.0,0.0001088,2]
[352295993,1739030804743,-2160.92086718,0.000109,2]
[352295994,1739030804771,-659.96,0.00010953,2]
[352295995,1739030804800,-266.53444009,0.00010953,2]
[352295996,1739030804828,-1304.96,0.00010954,2]
[352295997,1739030804856,-500.0,0.00010954,2]
[352295998,1739030804885,-500.0,0.00010954,2]
[352295999,1739030804913,-500.0,0.00010954,2]
[352296000,1739030804942,-456.68,0.00010954,2]
[352296001,1739030804971,-632.74,0.00010954,2]
[352296002,1739030805002,-455.73,0.00010954,2]
[352296003,1739030805031,-168.09420084,0.00010955,2]
[352296004,1739030805060,-500.0,0.00010955,2]
[352296005,1739030805088,-500.0,0.00010955,2]
[352296006,1739030805116,-500.0,0.00010955,2]
[352296007,1739030805144,-571.21,0.00010955,2]
[352296008,1739030805171,-534.32,0.00010955,2]
[352296009,1739030805200,-500.0,0.00010955,2]
[352296010,1739030805228,-375.81,0.00010956,2]
[352296011,1739030805257,-2912.82467326,0.00011,2]
[352296012,1739030809910,-300.0,0.00010132,2]
[352296013,1739030809920,-200.0,0.00010133,2]
[352296014,1739030809931,-300.0,0.00010133,2]
[352296015,1739030809940,-200.0,0.00010133,2]
[352296016,1739030809951,-300.0,0.00010133,2]
[352296017,1739030809960,-200.0,0.00010133,2]
[352296018,1739030809971,-300.0,0.00010133,2]
[352296019,1739030809980,-200.0,0.00010133,2]
[352296020,1739030809995,-300.0,0.00010133,2]
[352296021,1739030810004,-200.0,0.00010134,2]
[352296022,1739030810015,-306.87050863,0.00010134,2]
[352296023,1739030810025,-193.12949137,0.00010134,2]
[352296024,1739030810036,-306.87050863,0.00010134,2]
[352296025,1739030810046,-193.12949137,0.00010134,2]
[352296026,1739030810058,-306.87050863,0.00010134,2]
[352296027,1739030810068,-193.12949137,0.00010134,2]
[352296028,1739030810080,-306.87050863,0.00010134,2]
[352296029,1739030810090,-193.12949137,0.00010134,2]
[352296030,1739030810102,-306.87050863,0.00010134,2]
[352296031,1739030810114,-193.12949137,0.00010134,2]
[352296032,1739030810125,-306.87050863,0.00010134,2]
[352296033,1739030810135,-193.12949137,0.00010134,2]
[352296034,1739030810172,-404.57050863,0.00010134,2]
[352296035,1739030810182,-95.42949137,0.00010134,2]
[352296036,1739030810193,-404.57050863,0.00010134,2]
[352296037,1739030810202,-95.42949137,0.00010268,2]
[352296038,1739030810214,-404.57050863,0.00010268,2]
[352296039,1739030810224,-95.42949137,0.00010268,2]
[352296040,1739030810235,-404.57050863,0.00010268,2]
[352296041,1739030810244,-95.42949137,0.00010268,2]
[352296042,1739030810256,-404.57050863,0.00010268,2]
[352296043,1739030810265,-143.57949137,0.00010269,2]
[352296044,1739030810277,-356.42050863,0.00010269,2]
[352296045,1739030810286,-143.57949137,0.00010269,2]
[352296046,1739030810301,-356.42050863,0.00010269,2]
[352296047,1739030810311,-143.57949137,0.00010269,2]
[352296048,1739030810322,-356.42050863,0.00010269,2]
[352296049,1739030810331,-143.57949137,0.00010269,2]
[352296050,1739030810347,-356.42050863,0.00010269,2]
[352296051,1739030810357,-143.57949137,0.00010269,2]
[352296052,1739030810369,-356.42050863,0.00010269,2]
[352296053,1739030810379,-143.57949137,0.00010269,2]
[352296054,1739030810391,-356.42050863,0.00010269,2]
[352296055,1739030810401,-143.57949137,0.00010269,2]
[352296056,1739030810419,-183.55,0.00010269,2]
[352296057,1739030810430,-172.87050863,0.00010269,2]
[352296058,1739030810440,-487.08949137,0.00010269,2]
[352296059,1739030810451,-12.91050863,0.00010269,2]
[352296060,1739030810461,-171.963161,0.00010269,2]
[352296061,1739030810470,-315.12633037,0.00010269,2]
[352296062,1739030810483,-184.87366963,0.00010269,2]
[352296063,1739030810492,-315.12633037,0.00010269,2]
[352296064,1739030810504,-184.87366963,0.00010269,2]
[352296065,1739030810514,-315.12633037,0.00010269,2]
[352296066,1739030810525,-184.87366963,0.00010269,2]
[352296067,1739030810535,-315.12633037,0.00010269,2]
[352296068,1739030810548,-184.87366963,0.00010269,2]
[352296069,1739030810557,-315.12633037,0.00010269,2]
[352296070,1739030810568,-184.87366963,0.00010269,2]
[352296071,1739030810578,-315.12633037,0.00010269,2]
[352296072,1739030810590,-184.87366963,0.00010269,2]
[352296073,1739030810599,-315.12633037,0.00010269,2]
[352296074,1739030810611,-184.87366963,0.00010269,2]
[352296075,1739030810621,-315.12633037,0.00010269,2]
[352296076,1739030810632,-184.87366963,0.00010269,2]
[352296077,1739030810642,-315.12633037,0.00010269,2]
[352296078,1739030810654,-184.87366963,0.00010269,2]
[352296079,1739030810664,-315.12633037,0.00010269,2]
[352296080,1739030810675,-184.87366963,0.00010269,2]
[352296081,1739030810685,-315.12633037,0.00010269,2]
[352296082,1739030810698,-184.87366963,0.00010269,2]
[352296083,1739030810707,-315.12633037,0.00010269,2]
[352296084,1739030810723,-184.87366963,0.00010269,2]
[352296085,1739030810733,-315.12633037,0.00010269,2]
[352296086,1739030810745,-184.87366963,0.00010269,2]
[352296087,1739030810754,-315.12633037,0.00010269,2]
[352296088,1739030810766,-184.87366963,0.00010269,2]
[352296089,1739030810776,-315.12633037,0.00010269,2]
[352296090,1739030810787,-184.87366963,0.00010269,2]
[352296091,1739030810796,-315.12633037,0.00010269,2]
[352296092,1739030810815,-186.20785859,0.00010269,2]
[352296093,1739030810825,-313.79214141,0.00010269,2]
[352296094,1739030810837,-186.20785859,0.00010269,2]
[352296095,1739030810847,-313.79214141,0.00010269,2]
[352296096,1739030810859,-186.20785859,0.00010269,2]
[352296097,1739030810869,-313.79214141,0.00010269,2]
[352296098,1739030810880,-186.20785859,0.00010269,2]
[352296099,1739030810889,-314.07360727,0.00010269,2]
[352296100,1739030810900,-189.05673687,0.00010269,2]
[352296101,1739030810909,-310.94326313,0.00010269,2]
[352296102,1739030810922,-189.05673687,0.00010269,2]
[352296103,1739030810931,-310.94326313,0.0001027,2]
[352296104,1739030810943,-189.05673687,0.0001027,2]
[352296105,1739030810952,-310.94326313,0.0001027,2]
[352296106,1739030810971,-189.05673687,0.0001027,2]
[352296107,1739030810981,-310.94326313,0.0001027,2]
[352296108,1739030810993,-189.05673687,0.0001027,2]
[352296109,1739030811003,-310.94326313,0.0001027,2]
[352296110,1739030811014,-189.05673687,0.0001027,2]
[352296111,1739030811024,-310.94326313,0.0001027,2]
[352296112,1739030811036,-91.91673687,0.0001027,2]
[352296113,1739030811046,-408.29125593,0.0001027,2]
[352296114,1739030811057,-91.70874407,0.0001027,2]
[352296115,1739030811067,-64.25807893,0.0001027,2]
[352296116,1739030811079,-435.74192107,0.0001027,2]
[352296117,1739030811089,-64.25807893,0.0001027,2]
[352296118,1739030811112,-435.74192107,0.0001027,2]
[352296119,1739030811123,-64.25807893,0.0001027,2]
[352296120,1739030811135,-500.0,0.0001027,2]
[352296121,1739030811153,-72.99192107,0.0001027,2]
[352296122,1739030811162,-427.00807893,0.0001027,2]
[352296123,1739030811174,-72.99192107,0.0001027,2]
[352296124,1739030811184,-427.00807893,0.0001027,2]
[352296125,1739030811207,-72.99192107,0.0001027,2]
[352296126,1739030811217,-427.00807893,0.0001027,2]
[352296127,1739030811230,-72.99192107,0.0001027,2]
[352296128,1739030811240,-427.00807893,0.0001027,2]
[352296129,1739030811258,-500.0,0.0001027,2]
[352296130,1739030811270,-500.0,0.0001027,2]
[352296131,1739030811286,-500.0,0.0001027,2]
[352296132,1739030811310,-500.0,0.0001027,2]
[352296133,1739030811322,-500.0,0.0001027,2]
[352296134,1739030811340,-500.0,0.0001027,2]
[352296135,1739030811357,-500.0,0.0001027,2]
[352296136,1739030811370,-369.92192107,0.0001027,2]
[352296137,1739030811381,-130.07807893,0.0001027,2]
[352296138,1739030811394,-369.92192107,0.0001027,2]
[352296139,1739030811404,-130.07807893,0.00010271,2]
[352296140,1739030811417,-369.92192107,0.00010271,2]
[352296141,1739030811427,-130.07807893,0.00010271,2]
[352296142,1739030811439,-369.92192107,0.00010271,2]
[352296143,1739030811450,-130.07807893,0.00010271,2]
[352296144,1739030811466,-369.92192107,0.00010271,2]
[352296145,1739030811477,-130.07807893,0.00010405,2]
[352296146,1739030811540,-329.37192107,0.00010405,2]
[352296147,1739030811550,-170.62807893,0.00010405,2]
[352296148,1739030811583,-500.0,0.00010269,2]
[352296149,1739030811596,-329.37192107,0.00010405,2]
[352296150,1739030811606,-170.62807893,0.00010405,2]
[352296151,1739030811618,-329.37192107,0.00010405,2]
[352296152,1739030811628,-170.62807893,0.00010406,2]
[352296153,1739030811644,-329.37192107,0.00010406,2]
[352296154,1739030811655,-170.62807893,0.00010406,2]
[352296155,1739030811667,-329.37192107,0.00010406,2]
[352296156,1739030811678,-170.62807893,0.00010406,2]
[352296157,1739030811691,-329.37192107,0.00010406,2]
[352296158,1739030811701,-171.50113193,0.00010406,2]
[352296159,1739030811713,-328.49886807,0.00010406,2]
[352296160,1739030811723,-171.50113193,0.00010406,2]
[352296161,1739030811735,-328.49886807,0.00010406,2]
[352296162,1739030811744,-92.88136869,0.00010406,2]
[352296163,1739030811756,-407.11863131,0.00010406,2]
[352296164,1739030811765,-92.88136869,0.00010406,2]
[352296165,1739030811778,-407.11863131,0.00010406,2]
[352296166,1739030811788,-92.88136869,0.00010406,2]
[352296167,1739030811805,-407.11863131,0.00010406,2]
[352296168,1739030811815,-92.88136869,0.00010406,2]
[352296169,1739030811828,-407.11863131,0.00010406,2]
[352296170,1739030811838,-92.88136869,0.00010406,2]
[352296171,1739030811850,-407.11863131,0.00010406,2]
[352296172,1739030811860,-92.88136869,0.00010406,2]
[352296173,1739030811872,-407.11863131,0.00010406,2]
[352296174,1739030811881,-92.88136869,0.00010407,2]
[352296175,1739030811894,-407.11863131,0.00010407,2]
[352296176,1739030811903,-175.72532984,0.00010407,2]
[352296177,1739030811916,-324.27467016,0.00010407,2]
[352296178,1739030811926,-175.72532984,0.00010407,2]
[352296179,1739030811942,-324.27467016,0.00010407,2]
[352296180,1739030811952,-175.72532984,0.00010407,2]
[352296181,1739030811964,-243.61467016,0.00010407,2]
[352296182,1739030811974,-256.38532984,0.00010407,2]
[352296183,1739030811988,-77.45467016,0.00010407,2]
[352296184,1739030812001,-422.54532984,0.00010407,2]
[352296185,1739030812023,-500.0,0.00010269,2]
[352296186,1739030812035,-77.45467016,0.00010407,2]
[352296187,1739030812046,-422.54532984,0.00010407,2]
[352296188,1739030812058,-22.93467016,0.00010407,2]
[352296189,1739030812068,-477.06532984,0.00010407,2]
[352296190,1739030812081,-22.93467016,0.00010407,2]
[352296191,1739030812091,-477.06532984,0.00010407,2]
[352296192,1739030812103,-500.0,0.00010407,2]
[352296193,1739030812115,-500.0,0.00010407,2]
[352296194,1739030812127,-500.0,0.00010407,2]